{"text_format":"1","workbook":"xlsx","n_sheets":3,"sheets":["Instrucciones","Reformulación Presupuesto Ab","Resumen Presupuesto"],"not_rendered":{"charts":0,"images":2,"macros":1,"external_links":0,"defined_names":8,"comments":1,"pivot_tables":0},"unopened":[],"bounds":{"document_bytes":16777216,"sheet_cells":100000,"rows_first":2000,"rows_last":500,"rows_between":2000,"halvings":0,"cell_chars":16384,"cell_head_chars":4096},"cells_cut":0,"cells_raw":0,"read":"whole","date_system":"1900"}

{"sheet":"Instrucciones","index":0,"n_rows":18,"n_cols":10,"rows_kept":18,"cut":false,"hidden":false,"merged":[[16,1,16,17],[1,9,1,11],[2,2,3,17],[4,2,4,17],[6,2,6,17],[8,1,8,17],[9,1,9,17],[10,1,10,17],[12,1,12,17],[14,1,14,17]]}
[]
[null,null,null,null,null,null,null,null,null,"Doc_basico3_presup_reformulado_Ab INSTRUCCIONES"]
[null,null,"SUBVENCIONES DEL AYUNTAMIENTO DE BARCELONA PARA EL FORTALECIMIENTO DE LA ECONOMÍA SOCIAL Y SOLIDARIA Y POR LA INTERCOOPERACIÓN EN LA ESTRATEGIA #ESSBCN2030 - FORTALECEMOS LA ESS 2025"]
[]
[null,null,"Aspectos relevantes relacionados con la reformulación"]
[]
[null,null,"INSTRUCCIONES"]
[]
[null,"1. Cumplimentar sólo las celdas en blanco de la pestaña \"Reformulación Presupuesto\" con los datos económicos del proyecto:"]
[null,"1.1 Cumplimentar los cuadros DATOS BÁSICOS-PREVISIÓN DE GASTOS DEL PROYECTO SUBVENCIONABLE INICIAL, con los datos económicos de la propuesta inicial con subvención otorgada."]
[null,"1.2 Cumplimentar los cuadros DATOS BÁSICOS-PREVISIÓN DE GASTOS DEL PROYECTO REFORMULADO, con los datos económicos de la propuesta de reformulación."]
[]
[null,"2. Revisar y rellenar sólo las celdas en blanco de la pestaña \"Resumen Presupuesto\" con los datos económicos del proyecto."]
[]
[null,"3. Imprimir las hojas de las 2 pestañas (Reformulación presupuesto y Resumen Presupuesto). En formato pdf."]
[]
[null,"4. Si la solicitud se presentó por vía telemática, es necesario registrar la documentación telemáticamente dentro de la convocatoria específica como anexión de documentos adicionales y utilizar el número de trámite que el sistema de registro proporciona en el momento de la presentación de la solicitud de la subvención."]
[null,"Enlace para realizar el trámite."]

{"sheet":"Reformulación Presupuesto Ab","index":1,"n_rows":117,"n_cols":15,"rows_kept":117,"cut":false,"hidden":false,"merged":[[10,0,10,3],[10,6,10,9],[1,1,1,10],[3,0,3,14],[6,1,6,9],[7,1,7,9],[8,1,8,9],[4,0,4,14],[114,0,114,14],[12,7,12,9],[13,7,13,9],[11,1,11,3],[12,1,12,3],[13,1,13,3],[11,7,11,9],[16,12,16,14],[14,1,14,3],[16,0,16,4],[14,7,14,9],[16,6,16,10],[108,0,108,14],[14,10,14,12],[11,10,11,12],[115,0,115,14],[116,0,116,14],[99,0,99,14],[100,0,100,14],[101,0,101,14],[102,0,102,14],[103,0,103,14],[104,0,104,14],[105,0,105,14],[106,0,106,14],[107,0,107,14],[109,0,109,14],[110,0,110,14],[111,0,111,14],[112,0,112,14],[113,0,113,14]]}
[]
[null,"Reformulación presupuesto Modalidad Ab"]
[]
["Programa de subvenciones del Ayuntamiento de Barcelona para el fortalecimiento de la Economía Social y Solidaria y por la intercooperación en la Estrategia #ESSBCN2030 - FORTALECEMOS LA ESS 2025"]
["CUMPLIMENTAR SÓLO LAS CELDAS EN BLANCO"]
[]
["Nombre de la persona jurídica"]
["NIF de la persona jurídica"]
["Nombre del proyecto subvencionable"]
[]
["DATOS BÁSICOS DEL PROYECTO INICIAL SOLICITADO \n(indicar los datos solicitados en la propuesta inicial)",null,null,null,null,null,"DATOS BÁSICOS PROYECTO REFORMULADO"]
["Importe total del proyecto subvencionable",null,null,null,null,null,"Importe total del proyecto REFORMULADO",null,null,null,{"$f":"IF(H12<B12*0.7,\"No se puede reformular más de un 30%.\",\"\")","v":""}]
["Importe imputable a la subvención municipal",null,null,null,null,null,"Importe imputable a la subvención OTORGADA\n(indicar el importe otorgado a la resolución)"]
["Importe de la aportación y/o cofinanciación de la organización",{"$f":"+B12-B13","v":0},null,null,null,null,"Importe de la aportación y/o cofinanciación de la organización",{"$f":"H12-H13","v":0}]
["% del importe solicitado respecto al total del proyecto subvencionable (máximo 80%*)",{"$f":"IF(B13>11,B13/B12,\"\")","v":""},null,null,"* La cuantía de la subvención otorgada no superará el 80% del gasto total del proyecto a subvencionar.",null,"% del importe solicitado respecto al total del proyecto subvencionable (máximo 80%*)\n(debe ser igual o inferior respecto al % de la solicitud inicial)",{"$f":"IF(H13>11,H13/H12,\"\")","v":""},null,null,{"$f":"IF(H15=\"\",\"\",IF(H15>0.8,\"La cuantía de la subvención otorgada no puede superar el 80% del gasto total del proyecto.\",IF(H15>B15,\"Debe ser igual o inferior al % de la propuesta inicial.\",\"\")))","v":""}]
[]
["PREVISIÓN DE GASTOS DEL PROYECTO SUBVENCIONABLE INICIAL",null,null,null,null,null,"PREVISIÓN DE GASTOS DEL PROYECTO REFORMULADO",null,null,null,null,null,"DIFERENCIA REFORMULACIÓN Y PROYECTO INICIAL"]
[]
["Partidas","Importe imputable a la subvención municipal","% subvención / total","Importe de la aportación y/o atribuciones de la organización","Importe total del proyecto",null,"Partidas","Importe imputable a la subvención municipal","% subvención / total","Importe de la aportación y/o atribuciones de la organización","Importe total del proyecto",null,"Importe imputable a la subvención municipal","Importe de la aportación y/o atribuciones de la organización","Importe total del proyecto"]
["D1. Nóminas y seguridad social IRPF (régimen general o socios/as cooperativistas en régimen de autónomos) del personal propio vinculado al proyecto subvencionable (máximo 25% importe subvención)",{"$f":"SUM(B21:B25)","v":0},{"$f":"IF(B20>0,B20/$B$13,0)","v":0},{"$f":"SUM(D21:D25)","v":0},{"$f":"B20+D20","v":0},null,"D1. Nóminas y seguridad social IRPF (régimen general o socios/as cooperativistas en régimen de autónomos) del personal propio vinculado al proyecto subvencionable (máximo 25% importe subvención)",{"$f":"SUM(H21:H25)","v":0},{"$f":"IF(H20>0,H20/$H$13,0)","v":0},{"$f":"SUM(J21:J25)","v":0},{"$f":"+H20+J20","v":0},null,{"$f":"B20-H20","v":0},{"$f":"D20-J20","v":0},0]
[null,null,null,null,0,null,null,null,null,null,0,null,{"$f":"B21-H21","v":0},0,0]
[null,null,null,null,0,null,null,null,null,null,0,null,{"$f":"B22-H22","v":0},0,0]
[null,null,null,null,0,null,null,null,null,null,0,null,0,0,0]
[null,null,null,null,0,null,null,null,null,null,0,null,0,0,0]
[null,null,null,null,0,null,null,null,null,null,0,null,0,0,0]
["D2. Nóminas y seguridad social de estudiantes en prácticas (con un límite del 80% de su sueldo bruto correspondiente al periodo de la ejecución de la subvención) - excepto si la seguridad social está bonificada",{"$f":"SUM(B27:B31)","v":0},{"$f":"IF(B26>0,B26/$B$13,0)","v":0},{"$f":"SUM(D27:D31)","v":0},0,null,"D2. Nóminas y seguridad social de estudiantes en prácticas (con un límite del 80% de su sueldo bruto correspondiente al periodo de la ejecución de la subvención) - excepto si la seguridad social está bonificada",{"$f":"SUM(H27:H31)","v":0},{"$f":"IF(H26>0,H26/$H$13,0)","v":0},{"$f":"SUM(J27:J31)","v":0},0,null,{"$f":"B26-H26","v":0},{"$f":"D26-J26","v":0},0]
[null,null,null,null,0,null,null,null,null,null,0,null,{"$f":"B27-H27","v":0},0,0]
[null,null,null,null,0,null,null,null,null,null,0,null,0,0,0]
[null,null,null,null,0,null,null,null,null,null,0,null,0,0,0]
[null,null,null,null,0,null,null,null,null,null,0,null,0,0,0]
[null,null,null,null,0,null,null,null,null,null,0,null,0,0,0]
["TOTAL DE GASTOS DEL PERSONAL",{"$f":"B20+B26","v":0},{"$f":"IF(B32>0,B32/$B$13,0)","v":0},{"$f":"D20+D26","v":0},0,null,"TOTAL DE GASTOS DEL PERSONAL",{"$f":"H20+H26","v":0},{"$f":"IF(H32>0,H32/$H$13,0)","v":0},{"$f":"J20+J26","v":0},0,null,{"$f":"B32-H32","v":0},{"$f":"D32-J32","v":0},0]
["D3. Trabajos realizados por profesionales y empresas externas directamente vinculadas al proyecto (incluye gastos del estudiante en prácticas: tasas y otros gastos relacionados con el convenio de prácticas)",{"$f":"SUM(B34:B38)","v":0},{"$f":"IF(B33>0,B33/$B$13,0)","v":0},{"$f":"SUM(D34:D38)","v":0},{"$f":"B33+D33","v":0},null,"D3. Trabajos realizados por profesionales y empresas externas directamente vinculadas al proyecto (incluye gastos del estudiante en prácticas: tasas y otros gastos relacionados con el convenio de prácticas)",{"$f":"SUM(H34:H38)","v":0},{"$f":"IF(H33>0,H33/$H$13,0)","v":0},{"$f":"SUM(J34:J38)","v":0},{"$f":"+H33+J33","v":0},null,0,{"$f":"D33-J33","v":0},0]
[null,null,null,null,0,null,null,null,null,null,0,null,0,0,0]
[null,null,null,null,0,null,null,null,null,null,0,null,0,0,0]
[null,null,null,null,0,null,null,null,null,null,0,null,0,0,0]
[null,null,null,null,0,null,null,null,null,null,0,null,0,0,0]
[null,null,null,null,0,null,null,null,null,null,0,null,0,0,0]
["D4. Gastos de matriculación en acciones formativas externas con una duración mínima de 150 horas y/o un coste mínimo de 600€ para cada participante",{"$f":"SUM(B40:B44)","v":0},{"$f":"IF(B39>0,B39/$B$13,0)","v":0},{"$f":"SUM(D40:D44)","v":0},0,null,"D4. Gastos de matriculación en acciones formativas externas con una duración mínima de 150 horas y/o un coste mínimo de 600€ para cada participante",{"$f":"SUM(H40:H44)","v":0},{"$f":"IF(H39>0,H39/$H$13,0)","v":0},{"$f":"SUM(J40:J44)","v":0},{"$f":"H39+J39","v":0},null,{"$f":"B39-H39","v":0},{"$f":"D39-J39","v":0},0]
[null,null,null,null,0,null,null,null,null,null,0,null,{"$f":"B40-H40","v":0},0,0]
[null,null,null,null,0,null,null,null,null,null,0,null,0,0,0]
[null,null,null,null,0,null,null,null,null,null,0,null,0,0,0]
[null,null,null,null,0,null,null,null,null,null,0,null,0,0,0]
[null,null,null,null,0,null,null,null,null,null,{"$f":"+H44+J44","v":0},null,0,0,0]
["TOTAL DE OTROS GASTOS DIRECTOS",{"$f":"B33+B39","v":0},{"$f":"IF(B45>0,B45/$B$13,0)","v":0},{"$f":"D33+D39","v":0},0,null,"TOTAL DE OTROS GASTOS DIRECTOS",{"$f":"H33+H39","v":0},{"$f":"IF(H45>0,H45/$H$13,0)","v":0},{"$f":"J33+J39","v":0},0,null,{"$f":"B45-H45","v":0},{"$f":"D45-J45","v":0},0]
["TOTAL GASTOS DIRECTOS (aquellos que se identifican directamente con el proyecto subvencionable)",{"$f":"SUM(B32,B45)","v":0},{"$f":"IF(B46>0,B46/$B$13,0)","v":0},{"$f":"SUM(D32,D45)","v":0},{"$f":"E32+E45","v":0},null,"TOTAL GASTOS DIRECTOS (aquellos que se identifican directamente con el proyecto subvencionable)",{"$f":"SUM(H32,H45)","v":0},{"$f":"IF(H46>0,H46/$H$13,0)","v":0},{"$f":"SUM(J32,J45)","v":0},{"$f":"K32+K45","v":0},null,0,{"$f":"D46-J46","v":0},0]
["I1. Personal de apoyo al proyecto (nóminas y seguridad social)",{"$f":"SUM(B48:B51)","v":0},null,{"$f":"SUM(D48:D51)","v":0},{"$f":"+B47+D47","v":0},null,"I1. Personal de apoyo al proyecto (nóminas y seguridad social)",{"$f":"SUM(H48:H51)","v":0},null,{"$f":"SUM(J48:J51)","v":0},{"$f":"+H47+J47","v":0},null,0,{"$f":"D47-J47","v":0},0]
[null,null,null,null,0,null,null,null,null,null,0,null,0,0,0]
[null,null,null,null,0,null,null,null,null,null,0,null,0,0,0]
[null,null,null,null,0,null,null,null,null,null,0,null,0,0,0]
[null,null,null,null,0,null,null,null,null,null,0,null,0,0,0]
["I2. Seguros",{"$f":"SUM(B53:B56)","v":0},null,{"$f":"SUM(D53:D56)","v":0},0,null,"I2. Seguros",{"$f":"SUM(H53:H56)","v":0},null,{"$f":"SUM(J53:J56)","v":0},0,null,{"$f":"B52-H52","v":0},{"$f":"D52-J52","v":0},0]
[null,null,null,null,0,null,null,null,null,null,0,null,{"$f":"B53-H53","v":0},0,0]
[null,null,null,null,0,null,null,null,null,null,0,null,0,0,0]
[null,null,null,null,0,null,null,null,null,null,0,null,0,0,0]
[null,null,null,null,0,null,null,null,null,null,0,null,0,0,0]
["I3. Amortización",{"$f":"SUM(B58:B61)","v":0},null,{"$f":"SUM(D58:D61)","v":0},0,null,"I3. Amortización",{"$f":"SUM(H58:H61)","v":0},null,{"$f":"SUM(J58:J61)","v":0},0,null,{"$f":"B57-H57","v":0},{"$f":"D57-J57","v":0},0]
[null,null,null,null,0,null,null,null,null,null,0,null,{"$f":"B58-H58","v":0},0,0]
[null,null,null,null,0,null,null,null,null,null,0,null,0,0,0]
[null,null,null,null,0,null,null,null,null,null,0,null,0,0,0]
[null,null,null,null,0,null,null,null,null,null,0,null,0,0,0]
["I4. Alquiler de bienes inmuebles",{"$f":"SUM(B63:B66)","v":0},null,{"$f":"SUM(D63:D66)","v":0},0,null,"I4. Alquiler de bienes inmuebles",{"$f":"SUM(H63:H66)","v":0},null,{"$f":"SUM(J63:J66)","v":0},0,null,{"$f":"B62-H62","v":0},{"$f":"D62-J62","v":0},0]
[null,null,null,null,0,null,null,null,null,null,0,null,{"$f":"B63-H63","v":0},0,0]
[null,null,null,null,0,null,null,null,null,null,0,null,0,0,0]
[null,null,null,null,0,null,null,null,null,null,0,null,0,0,0]
[null,null,null,null,0,null,null,null,null,null,0,null,0,0,0]
["I5. Adquisición de materiales y bienes consumibles parcialmente imputables al proyecto",{"$f":"SUM(B68:B71)","v":0},null,{"$f":"SUM(D68:D71)","v":0},0,null,"I5. Adquisición de materiales y bienes consumibles parcialmente imputables al proyecto",{"$f":"SUM(H68:H71)","v":0},null,{"$f":"SUM(J68:J71)","v":0},0,null,{"$f":"B67-H67","v":0},{"$f":"D67-J67","v":0},0]
[null,null,null,null,0,null,null,null,null,null,0,null,{"$f":"B68-H68","v":0},0,0]
[null,null,null,null,0,null,null,null,null,null,0,null,0,0,0]
[null,null,null,null,0,null,null,null,null,null,0,null,0,0,0]
[null,null,null,null,0,null,null,null,null,null,0,null,0,0,0]
["I6. Mantenimiento de edificios y/o instalaciones",{"$f":"SUM(B73:B76)","v":0},null,{"$f":"SUM(D73:D76)","v":0},0,null,"I6. Mantenimiento de edificios y/o instalaciones",{"$f":"SUM(H73:H76)","v":0},null,{"$f":"SUM(J73:J76)","v":0},0,null,{"$f":"B72-H72","v":0},{"$f":"D72-J72","v":0},0]
[null,null,null,null,0,null,null,null,null,null,0,null,{"$f":"B73-H73","v":0},0,0]
[null,null,null,null,0,null,null,null,null,null,0,null,0,0,0]
[null,null,null,null,0,null,null,null,null,null,0,null,0,0,0]
[null,null,null,null,0,null,null,null,null,null,0,null,0,0,0]
["I7. Comunicaciones (teléfono, correos, conexión a internet)",{"$f":"SUM(B78:B81)","v":0},null,{"$f":"SUM(D78:D81)","v":0},0,null,"I7. Comunicaciones (teléfono, correos, conexión a internet)",{"$f":"SUM(H78:H81)","v":0},null,{"$f":"SUM(J78:J81)","v":0},0,null,{"$f":"B77-H77","v":0},{"$f":"D77-J77","v":0},0]
[null,null,null,null,0,null,null,null,null,null,0,null,{"$f":"B78-H78","v":0},0,0]
[null,null,null,null,0,null,null,null,null,null,0,null,0,0,0]
[null,null,null,null,0,null,null,null,null,null,0,null,0,0,0]
[null,null,null,null,0,null,null,null,null,null,0,null,0,0,0]
["I8. Gastos financieros",{"$f":"SUM(B83:B86)","v":0},null,{"$f":"SUM(D83:D86)","v":0},0,null,"I8. Gastos financieros",{"$f":"SUM(H83:H86)","v":0},null,{"$f":"SUM(J83:J86)","v":0},0,null,{"$f":"B82-H82","v":0},{"$f":"D82-J82","v":0},0]
[null,null,null,null,0,null,null,null,null,null,0,null,{"$f":"B83-H83","v":0},0,0]
[null,null,null,null,0,null,null,null,null,null,0,null,0,0,0]
[null,null,null,null,0,null,null,null,null,null,0,null,0,0,0]
[null,null,null,null,0,null,null,null,null,null,0,null,0,0,0]
["I9. Suministros",{"$f":"SUM(B88:B91)","v":0},null,{"$f":"SUM(D88:D91)","v":0},0,null,"I9. Suministros",{"$f":"SUM(H88:H91)","v":0},null,{"$f":"SUM(J88:J91)","v":0},0,null,{"$f":"B87-H87","v":0},{"$f":"D87-J87","v":0},0]
[null,null,null,null,0,null,null,null,null,null,0,null,{"$f":"B88-H88","v":0},0,0]
[null,null,null,null,0,null,null,null,null,null,0,null,0,0,0]
[null,null,null,null,0,null,null,null,null,null,0,null,0,0,0]
[null,null,null,null,0,null,null,null,null,null,0,null,0,0,0]
["I10. Trabajo realizado por otras empresas, parcialmente imputables al proyecto (limpieza, seguridad...)",{"$f":"SUM(B93:B96)","v":0},null,{"$f":"SUM(D93:D96)","v":0},0,null,"I10. Trabajo realizado por otras empresas, parcialmente imputables al proyecto (limpieza, seguridad...)",{"$f":"SUM(H93:H96)","v":0},null,{"$f":"SUM(J93:J96)","v":0},0,null,{"$f":"B92-H92","v":0},{"$f":"D92-J92","v":0},0]
[null,null,null,null,0,null,null,null,null,null,0,null,{"$f":"B93-H93","v":0},0,0]
[null,null,null,null,0,null,null,null,null,null,0,null,0,0,0]
[null,null,null,null,0,null,null,null,null,null,0,null,0,0,0]
[null,null,null,null,0,null,null,null,null,null,0,null,0,0,0]
["TOTAL GASTOS INDIRECTOS (se podrán asignar al proyecto subvencionable usando un porcentaje de asignación) - Máximo 10% del importe imputable a la subvención municipal",{"$f":"SUM(B47,B52,B57,B62,B67,B72,B77,B82,B87,B92)","v":0},{"$f":"IF(B97>0,B97/$B$13,0)","v":0},{"$f":"SUM(D47,D52,D57,D62,D67,D72,D77,D82,D87,D92)","v":0},{"$f":"E47+E52+E57+E62+E67+E72+E77+E82+E87+E92","v":0},null,"TOTAL GASTOS INDIRECTOS (se podrán asignar al proyecto subvencionable usando un porcentaje de asignación) - Máximo 10% del importe imputable a la subvención municipal",{"$f":"SUM(H47,H52,H57,H62,H67,H72,H77,H82,H87,H92)","v":0},{"$f":"IF(H97>0,H97/$H$13,0)","v":0},{"$f":"SUM(J47,J52,J57,J62,J67,J72,J77,J82,J87,J92)","v":0},{"$f":"K47+K52+K57+K62+K67+K72+K77+K82+K87+K92","v":0},{"$f":"+IF(H97>H13*0.1,\"ALERTA: Màxim 10% import imputable a la subvenció municipal\", \" \")","v":" "},{"$f":"B97-H97","v":0},{"$f":"D97-J97","v":0},0]
["TOTAL DE GASTOS PREVISTOS",{"$f":"SUM(B46+B97)","v":0},{"$f":"IF(B98>0,B98/$B$13,0)","v":0},{"$f":"SUM(D46+D97)","v":0},0,null,"TOTAL DE GASTOS PREVISTOS",{"$f":"SUM(H46+H97)","v":0},{"$f":"IF(H98>0,H98/$H$13,0)","v":0},{"$f":"SUM(J46+J97)","v":0},0,null,0,{"$f":"D98-J98","v":0},0]
[null,{"$f":"IF(B98>B13,\"La suma del detalle de gastos no puede ser superior al importe total de subvención municipal indicado en el recuadro.\",(IF(B98<B13,\"La suma del detalle de gastos no puede ser inferior al importe total de subvención municipal indicado en el recuadro.\",\"\")))","v":""},null,{"$f":"IF(D98>B14,\"La suma del detalle de gastos no puede ser superior al importe total de la aportación/cofinanciación indicado en el recuadro.\",(IF(D98<B14,\"La suma del detalle de gastos no puede ser inferior al importe total de la aportación/cofinanciación indicado en el recuadro.\",\"\")))","v":""},{"$f":"IF(E98>B12,\"La suma del detalle de gastos no puede ser superior al importe total del proyecto indicado en el recuadro.\",(IF(E98<B12,\"La suma del detalle de gastos no puede ser inferior al importe total del proyecto indicado en el recuadro.\",\"\")))","v":""},null,null,{"$f":"IF(H98>H13,\"La suma del detalle de gastos no puede ser superior al importe total de subvención municipal indicado en el recuadro.\",(IF(H98<H13,\"La suma del detalle de gastos no puede ser inferior al importe total de subvención municipal indicado en el recuadro.\",\"\")))","v":""},null,{"$f":"IF(J98>H14,\"La suma del detalle de gastos no puede ser superior al importe total de la aportación/cofinanciación indicado en el recuadro.\",(IF(J98<H14,\"La suma del detalle de gastos no puede ser inferior al importe total de la aportación/cofinanciación indicado en el recuadro.\",\"\")))","v":""},{"$f":"IF(K98>H12,\"La suma del detalle de gastos no puede ser superior al importe total del proyecto indicado en el recuadro.\",(IF(K98<H12,\"La suma del detalle de gastos no puede ser inferior al importe total del proyecto indicado en el recuadro.\",\"\")))","v":""}]
["Modalidad Ab: Acciones de consolidación empresarial y escalabilidad de las iniciativas de Economía Social y Solidaria para fortalecer su viabilidad económica, así como la orientación de esta consolidación al Acuerdo y Estrategia #ESSBCN2030 y a los objetivos estratégicos del PIESS 2024-2027"]
["1. La cuantía de la subvención otorgada no superará el 80% del gasto total del proyecto a subvencionar."]
["2. El importe máximo de subvención para la modalidad Ab es 9.000€."]
["3. En el caso de que la solicitud presentada sobrepase el importe máximo, se considerará como importe solicitado el máximo de lo establecido en la convocatoria."]
["4. Se limita con un máximo del 25% el importe de la subvención para gastos de personal propio que participa de forma directa y debidamente al proyecto. Y un máximo del 80% por nóminas y seguridad social de estudiantes en prácticas (sueldo bruto correspondiente al periodo de la ejecución de la subvención) - excepto si la seguridad social está bonificada."]
["5. En ningún caso se considerarán gastos subvencionables:\n> Los impuestos indirectos cuando sean susceptibles de recuperación o compensación.\n> Los gastos de inversión, incluidas las adquisiciones de bienes muebles.\n> Los gastos realizados con fecha anterior al inicio del proyecto y fecha posterior a la finalización del proyecto.\n> Otros gastos que se indiquen en la convocatoria."]
["6. Son imputables en esta modalidad los gastos indirectos, detallados en el apartado 13.3. de las bases reguladoras; con un máximo del 10% del importe de la subvención."]
["7. La retribución de las personas contratadas en el marco del proyecto subvencionado no puede ser inferior al Salario Mínimo Interprofesional (SMI), ni a la estipulada en el correspondiente convenio o marco normativo de referencia (punto 7 de las bases 2025: requisitos de los proyectos)."]
["8. Los materiales producidos de difusión, estudios, informes o materiales didácticos utilizados, etc. en el caso de tratarse de gasto elegible de la subvención, deberán tener licencia Creative Commons -Compartir Igual- (share a like) y no podrá tener la condición –Sin Obras Derivadas- (no derivate Works)."]
["9. Los proyectos subvencionados deben fomentar actividades de interés público o social, las cuales deben ser gratuitas para las personas participantes o en ningún caso el precio debe suponer un obstáculo para su participación, buscando otras formas de acceso para personas con dificultades económicas. En el caso de que haya algún tipo de lucro, tendrá que revertir en las propias actividades subvencionadas."]
["10. El Ayuntamiento de Barcelona y sus entidades municipales en ningún caso subvencionarán el mismo proyecto, ejecutado durante el mismo periodo, por ningún otro procedimiento de concesión que no sea el regulado por las bases reguladoras."]
["11. El/la beneficiario/a no podrá alterar en ningún caso el destino de las subvenciones concedidas."]
["12. El programa de prácticas del alumno/a debe ser de una duración mínima de 400 horas o superior."]
["13. Solo puede presentarse una solicitud por un puesto de prácticas por organización solicitante."]
["14. Habrá que remunerar al alumno/a en prácticas universitarias (curriculares o extracurriculares) con un coste bruto hora mínimo de 6€/hora o superior."]
["15. Habrá que remunerar al alumno/a según la modalidad de FP dual escogida como mínimo de acuerdo con la normativa específica que establece el Departamento de Educación de la Generalidad de Cataluña o superior."]
["16. No se pueden imputar en ningún caso gastos de inversión, correspondientes a partidas del inmovilizado, con el dinero de la subvención otorgada en esta convocatoria específica. Sí se pueden imputar a la parte de contribución, siempre que sean gastos dentro del periodo ejecutivo del proyecto subvencionado y acreditables tal como se describe en las bases reguladoras vigentes."]
["17. En el caso de presentar tickets, su importe no podrá superar el 10% de la subvención e irán acompañados de una declaración responsable del representante legal de la persona jurídica o de la agrupación de personas jurídicas que indicará en qué concepto se imputa este gasto."]

{"sheet":"Resumen Presupuesto","index":2,"n_rows":27,"n_cols":12,"rows_kept":27,"cut":false,"hidden":false,"merged":[[1,2,2,8],[3,0,3,9],[5,0,5,1],[6,0,7,1],[6,2,7,3],[6,4,7,5],[26,7,26,10],[6,7,7,8],[6,9,7,9],[6,10,7,10],[9,7,10,7],[9,8,10,8],[9,9,10,9],[9,10,10,10],[12,7,13,7],[12,8,13,8],[12,9,13,9],[12,10,13,10],[21,7,21,8],[14,0,15,1],[14,2,15,3],[14,4,15,5],[10,3,11,3],[10,0,11,0],[10,1,11,1],[10,2,11,2],[10,4,11,4],[10,5,11,5]]}
[]
[null,null,"Resumen presupuesto Ab"]
[]
["Subvenciones del Ayuntamiento de Barcelona para el fortalecimiento de la Economía Social y Solidaria y por la intercooperación en la Estrategia #ESSBCN2030 - FORTALECEMOS LA ESS 2025",null,null,null,null,null,null,null,null,null,"MODALIDAD Ab"]
[]
["GASTOS PREVISTOS",null,"SOLICITUD INICIAL","REFORMULACIÓN","SOLICITUD INICIAL","REFORMULACIÓN",null,"INGRESOS PREVISTOS",null,"SOLICITUD INICIAL","REFORMULACIÓN"]
["Gastos directos \n(aquellas que se identifican directamente con el proyecto)",null,"Coste total",null,"Subvención",null,null,"Ingresos previstos",null,"Previsión inicial ingreso total","Previsión reformulada ingreso total"]
[]
["Ab","D1. Nóminas y seguridad social IRPF (régimen general o socios/as cooperativistas en régimen de autónomos) del personal propio vinculado al proyecto subvencionable (máximo 25% importe subvención)",{"$f":"+'Reformulación Presupuesto Ab'!E20","v":0},{"$f":"+'Reformulación Presupuesto Ab'!K20","v":0},{"$f":"+'Reformulación Presupuesto Ab'!B20","v":0},{"$f":"+'Reformulación Presupuesto Ab'!H20","v":0},{"$f":"+IF(E9<0,\"No s'admeten valors negatius\",\"\")","v":""},"A.","Subvención municipal (importe solicitado a la instancia/otorgado)",{"$f":"'Reformulación Presupuesto Ab'!B13","v":0},{"$f":"'Reformulación Presupuesto Ab'!H13","v":0}]
[null,"D2. Nóminas y seguridad social de estudiantes en prácticas (con un límite del 80% de su sueldo bruto correspondiente al periodo de la ejecución de la subvención) - excepto si la seguridad social está bonificada",{"$f":"+'Reformulación Presupuesto Ab'!E26","v":0},{"$f":"+'Reformulación Presupuesto Ab'!K26","v":0},{"$f":"+'Reformulación Presupuesto Ab'!B26","v":0},{"$f":"+'Reformulación Presupuesto Ab'!H26","v":0},null,"B.","Subvenciones de otras administraciones"]
[null,"D3. Trabajos realizados por profesionales y empresas externas directamente vinculadas al proyecto (incluye gastos del estudiante en prácticas: tasas y otros gastos relacionados con el convenio de prácticas)",{"$f":"+'Reformulación Presupuesto Ab'!E33","v":0},{"$f":"+'Reformulación Presupuesto Ab'!K33","v":0},{"$f":"+'Reformulación Presupuesto Ab'!B33","v":0},{"$f":"+'Reformulación Presupuesto Ab'!H33","v":0},null,null,null,null,null,{"$f":"+IF(K11<0,\"No s'admeten valors negatius\",\"\")","v":""}]
[null,null,null,null,null,null,{"$f":"+IF(E11<0,\"No s'admeten valors negatius\",\"\")","v":""},"C.","Subvenciones de entidades privadas",null,null,""]
[null,"D4. Gastos de matriculación en acciones formativas externas con una duración mínima de 150 horas y/o un coste mínimo de 600€ para cada participante",{"$f":"+'Reformulación Presupuesto Ab'!E39","v":0},{"$f":"+'Reformulación Presupuesto Ab'!K39","v":0},{"$f":"+'Reformulación Presupuesto Ab'!B39","v":0},{"$f":"+'Reformulación Presupuesto Ab'!H39","v":0},null,"D.","Recursos propios de la organización aplicados al proyecto"]
[null,"Total Gastos Directos",{"$f":"SUM(C9:C13)","v":0},{"$f":"SUM(D9:D13)","v":0},0,0,{"$f":"+IF(E12<0,\"No s'admeten valors negatius\",\"\")","v":""}]
["Gastos indirectos (máximo 10% subvención)",null,"Indirectos inicial total",null,"Indirectos inicial subvención",null,{"$f":"+IF(E14<0,\"No s'admeten valors negatius\",\"\")","v":""},"E.","Taquillaje"]
[null,null,null,null,null,null,null,"F.","Cuotas de inscripción"]
[null,"Total Gastos Indirectos",{"$f":"'Reformulación Presupuesto Ab'!E97","v":0},{"$f":"'Reformulación Presupuesto Ab'!K97","v":0},{"$f":"'Reformulación Presupuesto Ab'!B97","v":0},{"$f":"'Reformulación Presupuesto Ab'!H97","v":0},null,"G.","Venta de Productos"]
[null,"Total Gastos",{"$f":"+C14+C17","v":0},{"$f":"+D14+D17","v":0},0,0,null,"H","Publicidad y/o Esponsorización"]
[null,null,null,null,null,null,null,"I.","Otros ingresos"]
[null,null,null,null,null,null,null,null,"Total Ingresos",{"$f":"SUM(J9:J19)","v":0},0]
[]
[null,null,null,null,null,null,null,"Ingresos menos gastos",null,{"$f":"+J20-C18","v":0},{"$f":"+K20-D18","v":0}]
[]
[null,null,null,null,null,null,null,null,null,"% subvencionado inicialmente",{"$f":"IF(J9>0,J9/C18,\"\")","v":""}]
[]
[null,null,null,null,null,null,null,null,null,"% subvencionado después de reformular",{"$f":"IF(K9>9,K9/D18,\"\")","v":""},"*"]
[null,null,null,null,null,null,null,"*Este porcentaje debe ser igual o menor al porcentaje subvencionado inicialmente."]